Workbook

Sheet Sheet1
F2: Unit Fund
A3: Premiums | B3: 1000
A4: allocation | B4: 0.5 | C4: 0.99 | F4: year | G4: premium | H4: allocated | I4: bid price | J4: accumulate | K4: return | L4: AMC | M4: post AMC
A5: BO spread | B5: 0.05 | F5: 1 | G5: =$B$3 -> 1,000.00 | H5: =G5*B4 -> 500.00 | I5: =H5*(1-$B$5) -> 475.00 | J5: =I5 -> 475.00 | K5: =J5*(1+$B$7) -> 508.25 | L5: =K5*$B$6 -> 5.08 | M5: =K5-L5 -> 503.17
A6: AMC | B6: 0.01 | F6: =F5+1 -> 2 | G6: =$B$3 -> 1,000.00 | H6: =$B$3*$C$4 -> 990.00 | I6: =H6*(1-$B$5) -> 940.50 | J6: =I6+M5 -> 1,443.67 | K6: =J6*(1+$B$7) -> 1,544.72 | L6: =K6*$B$6 -> 15.45 | M6: =K6-L6 -> 1,529.28
A7: Return units | B7: 0.07 | F7: =F6+1 -> 3 | G7: 1,000.00 | H7: =$B$3*$C$4 -> 990.00 | I7: 940.50 | J7: =I7+M6 -> 2,469.78 | K7: 2,642.66 | L7: 26.43 | M7: 2,616.23
A8: Return sterling | B8: 0.02 | F8: 4 | G8: 1,000.00 | H8: 990.00 | I8: 940.50 | J8: 3,556.73 | K8: 3,805.71 | L8: 38.06 | M8: 3,767.65
A9: Initial expenses | B9: 150 | F9: 5 | G9: 1,000.00 | H9: 990.00 | I9: 940.50 | J9: 4,708.15 | K9: 5,037.72 | L9: 50.38 | M9: 4,987.34
A10: Renewal expenses | B10: 30
A11: expense increases | B11: 0.05 | F11: Sterling Fund
A12: term | B12: 5
A13: sum assured | B13: 5000 | F13: Year | G13: fees | H13: expenses | I13: interest | J13: AMC | K13: death ben | L13: Cashflow
A14: age | B14: 60 | F14: 1 | G14: =G5-I5 -> 525.00 | H14: =B9 -> 150.00 | I14: =(G14-H14)*$B$8 -> 7.50 | J14: =L5 -> 5.08 | K14: =MAX(0,$B$13-M5)*$B$15 -> 44.97 | L14: =G14-H14+I14+J14-K14 -> 342.61
A15: q_x | B15: 0.01 | F15: =F14+1 -> 2 | G15: =G6-I6 -> 59.50 | H15: =B10 -> 30.00 | I15: =(G15-H15)*$B$8 -> 0.59 | J15: =L6 -> 15.45 | K15: =MAX(0,$B$13-M6)*$B$15 -> 34.71 | L15: =G15-H15+I15+J15-K15 -> 10.83
F16: =F15+1 -> 3 | G16: 59.50 | H16: =H15*(1+$B$11) -> 31.50 | I16: 0.56 | J16: =L7 -> 26.43 | K16: =MAX(0,$B$13-M7)*$B$15 -> 23.84 | L16: 31.15
F17: 4 | G17: 59.50 | H17: =H16*(1+$B$11) -> 33.08 | I17: 0.53 | J17: =L8 -> 38.06 | K17: =MAX(0,$B$13-M8)*$B$15 -> 12.32 | L17: 52.69
F18: 5 | G18: 59.50 | H18: 34.73 | I18: 0.50 | J18: =L9 -> 50.38 | K18: =MAX(0,$B$13-M9)*$B$15 -> 0.13 | L18: 75.52
